fUST/lending_fUST_20250612
["ID","MTS","AMOUNT","RATE_DAILY","PERIOD"]
[365513413,1749731444340,-460.0,0.00022739,4]
[365513414,1749731444350,-460.0,0.00022739,2]
[365513415,1749731444359,-460.0,0.00022739,4]
[365513416,1749731444369,-460.0,0.00022739,4]
[365513417,1749731444378,-1391.08,0.00022739,4]
[365513418,1749731444388,-460.0,0.00022739,4]
[365513419,1749731444397,-460.0,0.00022739,4]
[365513420,1749731444407,-928.04,0.00022739,4]
[365513421,1749731444417,-678.6,0.00022739,4]
[365513422,1749731444427,-1258.71,0.00022739,4]
[365513423,1749731444436,-1992.41,0.00022739,4]
[365513424,1749731444446,-340.0,0.00022739,4]
[365513425,1749731444455,-460.0,0.00022739,4]
[365513426,1749731444464,-460.0,0.00022739,4]
[365513427,1749731444474,-577.83,0.00022739,4]
[365513428,1749731444483,-460.0,0.00022739,4]
[365513429,1749731444492,-460.0,0.00022739,4]
[365513430,1749731444502,-460.0,0.00022739,4]
[365513431,1749731444512,-460.0,0.00022739,4]
[365513432,1749731444522,-271.33,0.00022739,4]
[365513433,1749731444531,-1655.48,0.00022739,4]
[365513434,1749731444541,-460.0,0.00022739,4]
[365513435,1749731444550,-303.99,0.00022739,4]
[365513436,1749731444559,-460.0,0.00022739,4]
[365513437,1749731444568,-1337.67,0.00022739,4]
[365513438,1749731444578,-460.0,0.00022739,4]
[365513439,1749731444587,-3201.5,0.00022739,4]
[365513440,1749731444596,-460.0,0.00022739,4]
[365513441,1749731444605,-158.77989778,0.00022767,2]
[365513442,1749731444615,-168.0,0.00022782,2]
[365513443,1749731444624,-181.04210989,0.00022795,2]
[365513444,1749731444634,-151.0,0.000228,9]
[365513445,1749731444643,-800.0,0.00022805,2]
[365513446,1749731444653,-460.0,0.00022812,4]
[365513447,1749731444662,-460.0,0.00022812,4]
[365513448,1749731444671,-593.45,0.00022812,4]
[365513449,1749731444681,-764.14,0.00022812,4]
[365513450,1749731444690,-2084.24,0.00022812,4]
[365513451,1749731444700,-501.21,0.00022812,4]
[365513452,1749731444709,-2531.84822976,0.00022831,8]
[365513453,1749731444718,-168.0,0.00022836,2]
[365513454,1749731444728,-600.0,0.00022848,2]
[365513455,1749731444737,-499.67836663,0.00022875,2]
[365513456,1749731444746,-1990.73072078,0.00022875,2]
[365513457,1749731444756,-5000.0,0.00022875,2]
[365513458,1749731444766,-151.0,0.00022915,6]
[365513459,1749731444776,-151.0,0.00022935,7]
[365513460,1749731444785,-420131.24907861,0.00022947,2]
[365513461,1749731444795,-153.0,0.00022947,3]
[365513462,1749731444804,-153.0,0.00022947,3]
[365513463,1749731444814,-153.0,0.00022947,3]
[365513464,1749731444823,-153.0,0.00022947,3]
[365513465,1749731444833,-153.0,0.00022947,3]
[365513466,1749731444842,-154.20873316,0.00022947,3]
[365513467,1749731444852,-317.0,0.00022947,3]
[365513468,1749731444861,-317.0,0.00022947,3]
[365513469,1749731444870,-317.0,0.00022947,3]
[365513470,1749731444879,-317.0,0.00022947,3]
[365513471,1749731444889,-317.0,0.00022947,3]
[365513472,1749731444898,-317.0,0.00022947,3]
[365513473,1749731444907,-317.0,0.00022947,3]
[365513474,1749731444916,-308.9982552,0.00022947,3]
[365513475,1749731444926,-154.96762593,0.00022947,3]
[365513476,1749731444935,-153.0,0.00022947,3]
[365513477,1749731444944,-153.0,0.00022947,3]
[365513478,1749731444953,-153.98424146,0.00022947,3]
[365513479,1749731444963,-500.0,0.00022973,2]
[365513480,1749731444972,-501.26995734,0.00022973,2]
[365513481,1749731444982,-500.51322611,0.00022973,2]
[365513482,1749731444992,-501.97486548,0.00022973,2]
[365513483,1749731445002,-500.0,0.00022973,2]
[365513484,1749731445012,-500.0,0.00022973,2]
[365513485,1749731445021,-600.0,0.00022973,2]
[365513486,1749731445032,-501.28822386,0.00022973,2]
[365513487,1749731445042,-558.15041636,0.00022973,2]
[365513488,1749731445052,-501.12785413,0.00022973,2]
[365513489,1749731445062,-500.0,0.00022973,2]
[365513490,1749731445071,-259.30897065,0.00022973,2]
[365513491,1749731445081,-500.0,0.00022973,2]
[365513492,1749731445090,-500.0,0.00022973,2]
[365513493,1749731445100,-500.0,0.00022973,2]
[365513494,1749731445109,-503.46059178,0.00022973,2]
[365513495,1749731445119,-500.0,0.00022973,2]
[365513496,1749731445127,-500.0,0.00022973,2]
[365513497,1749731445137,-500.0,0.00022973,2]
[365513498,1749731445146,-500.0,0.00022973,2]
[365513499,1749731445155,-501.22190084,0.00022973,2]
[365513500,1749731445165,-500.0,0.00022973,2]
[365513501,1749731445174,-645.13087808,0.00022973,2]
[365513502,1749731445183,-501.57892023,0.00022973,2]
[365513503,1749731445192,-500.0,0.00022973,2]
[365513504,1749731445201,-500.0,0.00022973,2]
[365513505,1749731445211,-207.0,0.0002298,2]
[365513506,1749731445220,-1608.73,0.00023,2]
[365513507,1749731445229,-273.4,0.00023,2]
[365513508,1749731445239,-273.4,0.00023,2]
[365513509,1749731445248,-273.4,0.00023,2]
[365513510,1749731445258,-151.0,0.00023,7]
[365513511,1749731445267,-151.0,0.00023,7]
[365513512,1749731445275,-151.0,0.00023,7]
[365513514,1749731445284,-151.0,0.00023,7]
[365513515,1749731445293,-151.0,0.00023,9]
[365513516,1749731445302,-229.7508257,0.00023,3]
[365513517,1749731445311,-462.75465711,0.00023,2]
[365513518,1749731445320,-160.0,0.00023,3]
[365513519,1749731445330,-835.15920933,0.00023,3]
[365513520,1749731445341,-220426.81645251,0.00023,20]
[365513523,1749731445350,-424.26423502,0.00023,3]
[365513525,1749731445359,-223.44416617,0.00023002,2]
[365513527,1749731445368,-500.0,0.00023007,2]
[365513529,1749731445378,-800.0,0.00023008,2]
[365513531,1749731445387,-502.160656,0.00023012,2]
[365513533,1749731445397,-500.0,0.00023012,2]
[365513536,1749731445406,-460.0,0.00023013,4]
[365513538,1749731445416,-460.0,0.00023013,2]
[365513540,1749731445426,-460.0,0.00023013,4]
[365513543,1749731445435,-460.0,0.00023013,4]
[365513545,1749731445444,-1391.08,0.00023013,4]
[365513546,1749731445453,-460.0,0.00023013,4]
[365513547,1749731445462,-460.0,0.00023013,4]
[365513548,1749731445471,-928.04,0.00023013,4]
[365513549,1749731445480,-678.6,0.00023013,4]
[365513550,1749731445491,-1258.71,0.00023013,4]
[365513551,1749731445500,-1992.41,0.00023013,4]
[365513552,1749731445510,-460.0,0.00023013,4]
[365513553,1749731445519,-460.0,0.00023013,4]
[365513554,1749731445528,-577.83,0.00023013,4]
[365513555,1749731445537,-360.0,0.00023013,4]
[365513556,1749731445547,-460.0,0.00023013,4]
[365513557,1749731445556,-460.0,0.00023013,4]
[365513558,1749731445566,-165.56079701,0.00023013,4]
[365513559,1749731445575,-1655.48,0.00023013,4]
[365513560,1749731445583,-340.0,0.00023013,4]
[365513561,1749731445592,-476.42,0.00023013,4]
[365513562,1749731445601,-1337.67,0.00023013,4]
[365513563,1749731445610,-460.0,0.00023013,4]
[365513564,1749731445620,-3201.5,0.00023013,4]
[365513565,1749731445629,-457.53719606,0.00023013,4]
[365513566,1749731445638,-168.0,0.00023025,2]
[365513567,1749731445647,-2531.84822976,0.00023038,8]
[365513568,1749731445657,-1869.8918655,0.0002305,2]
[365513569,1749731445666,-3000.0,0.0002306,2]
[365513570,1749731445675,-151.0,0.0002306,7]
[365513571,1749731445685,-244.098053,0.0002306,7]
[365513572,1749731445694,-151.0,0.0002306,7]
[365513573,1749731445704,-151.0,0.0002306,7]
[365513574,1749731445713,-151.0,0.0002306,7]
[365513575,1749731445722,-151.0,0.0002306,7]
[365513576,1749731445731,-500.0,0.00023068,2]
[365513577,1749731445741,-500.0,0.00023068,3]
[365513578,1749731445750,-158.77989778,0.00023068,2]
[365513579,1749731445760,-3000.0,0.0002307,2]
[365513580,1749731445769,-300.392179,0.0002307,7]
[365513581,1749731445779,-500.0,0.00023073,2]
[365513582,1749731445788,-500.0,0.00023073,2]
[365513583,1749731445797,-500.0,0.00023073,2]
[365513584,1749731445807,-500.0,0.00023073,2]
[365513585,1749731445816,-501.18837978,0.00023073,2]
[365513586,1749731445826,-500.0,0.00023073,2]
[365513587,1749731445835,-500.0,0.00023073,2]
[365513588,1749731445846,-500.0,0.00023073,2]
[365513589,1749731445856,-263.62215976,0.00023073,2]
[365513590,1749731445866,-500.0,0.00023073,2]
[365513591,1749731445876,-500.0,0.00023073,2]
[365513592,1749731445885,-151.0,0.00023073,7]
[365513593,1749731445895,-151.0,0.00023073,7]
[365513594,1749731445904,-151.0,0.00023073,7]
[365513595,1749731445915,-261.667001,0.00023073,7]
[365513596,1749731445924,-3000.0,0.0002308,2]
[365513597,1749731445933,-365.863656,0.0002308,7]
[365513598,1749731445943,-365.863655,0.0002308,7]
[365513599,1749731445952,-460.0,0.00023086,4]
[365513600,1749731445961,-186.3,0.00023086,4]
[365513601,1749731445972,-593.45,0.00023086,4]
[365513602,1749731445982,-764.14,0.00023086,4]
[365513603,1749731445991,-2084.24,0.00023086,4]
[365513604,1749731446000,-600.0,0.00023086,2]
[365513605,1749731446010,-501.21,0.00023086,4]
[365513606,1749731446019,-4000.0,0.00023088,3]
[365513607,1749731446028,-151.0,0.0002309,7]
[365513608,1749731446037,-3000.0,0.0002309,2]
[365513609,1749731446046,-151.0,0.00023092,6]
[365513610,1749731446056,-4000.0,0.00023096,3]
[365513611,1749731446065,-151.0,0.00023096,7]
[365513612,1749731446074,-151.0,0.00023096,7]
[365513613,1749731446084,-151.0,0.00023096,7]
[365513614,1749731446092,-2900.59172645,0.000231,7]
[365513618,1749731446455,-460.0,0.00021095,4]
[365513619,1749731446465,-125.13435132,0.00021095,4]
[365513620,1749731446477,-334.86564868,0.00021095,4]
[365513621,1749731446487,-26.31363607,0.00021095,4]
[365513629,1749731446643,-434.35960639,0.00021095,4]
[365513630,1749731446652,-151.0,0.00021279,2]
[365513631,1749731446661,-460.0,0.00021369,4]
[365513632,1749731446670,-213.20212768,0.00021524,2]
[365513633,1749731446679,-844.79171733,0.00021524,2]
[365513634,1749731446688,-460.0,0.00021643,4]
[365513635,1749731446697,-11905.6799311,0.00021817,2]
[365513636,1749731446707,-460.0,0.00021917,4]
[365513637,1749731446716,-460.0,0.00022191,4]
[365513638,1749731446725,-471.7,0.00022465,4]
[365513639,1749731446734,-606.5198315,0.00022859,2]
[365513640,1749731446746,-2380.37555558,0.00022859,2]
[365513641,1749731446757,-8918.78454402,0.00022859,2]
[365513642,1749731446766,-8183.82216442,0.000231,7]
[365513703,1749731533681,194.84232067,0.00016,2]
[365513726,1749731733089,-5000.0,0.00018938,2]
[365513727,1749731733109,-166.6284359,0.00019487,2]
[365513728,1749731733130,-300.0,0.00019586,2]
[365513729,1749731733151,-300.0,0.00019586,2]
[365513730,1749731733174,-300.0,0.00019586,2]
[365513731,1749731733195,-1200.0,0.00019586,2]
[365513732,1749731733219,-9836.3715641,0.00019587,2]
[365513799,1749732146041,162.927454,0.00013699,2]
[365513842,1749732445901,525.5,0.00024658,120]
[365513847,1749732478701,26037.0,0.0001805,6]
[365514181,1749732632226,-3049.56953397,0.000189,2]
[365514188,1749732632738,-226.35468164,0.00018938,2]
[365514189,1749732632750,-166.6284359,0.00019446,2]
[365514190,1749732632760,-1200.0,0.00019545,2]
[365514191,1749732632770,-300.0,0.00019546,2]
[365514192,1749732632779,-300.0,0.00019546,2]
[365514193,1749732632789,-300.0,0.00019546,2]
[365514194,1749732632798,-10000.0,0.00019547,2]
[365514195,1749732632807,-15063.6284359,0.00019587,2]
[365514196,1749732632816,-172.753887,0.00019632,2]
[365514197,1749732632825,-293.991393,0.00019645,2]
[365514198,1749732632835,-505.3690862,0.00019755,2]
[365514199,1749732632844,-500.0,0.00019964,2]
[365514200,1749732632853,-162.927454,0.00020187,2]
[365514201,1749732632863,-263.099,0.00020467,2]
[365514202,1749732632872,-825.73,0.00020665,2]
[365514203,1749732632881,-835.15920933,0.00020836,2]
[365514204,1749732632890,-160.0,0.00020836,2]
[365514205,1749732632899,-229.7508257,0.00020836,2]
[365514206,1749732632908,-424.26423502,0.00020836,2]
[365514207,1749732632916,-160.0,0.00020836,2]
[365514208,1749732632928,-213.20212768,0.00020836,2]
[365514209,1749732632937,-844.79171733,0.00020836,2]
[365514210,1749732632946,-160.0,0.00020838,2]
[365514211,1749732632955,-978.04515262,0.000209,4]
[365514212,1749732632964,-800.0,0.00020901,2]
[365514213,1749732632973,-800.0,0.00020908,2]
[365514214,1749732632981,-978.04515246,0.00021038,4]
[365514215,1749732632991,-160.0,0.00021094,2]
[365514216,1749732633000,-390.24333677,0.00021094,2]
[365514217,1749732633009,-500.0,0.00021094,2]
[365514218,1749732633019,-386.88559323,0.00021094,2]
[365514219,1749732633029,-500.0,0.00021094,2]
[365514220,1749732633038,-500.0,0.00021094,2]
[365514221,1749732633048,-500.0,0.00021094,2]
[365514222,1749732633058,-488.14288822,0.00021094,2]
[365514223,1749732633068,-460.0,0.00021095,4]
[365514224,1749732633079,-310.0,0.00021095,4]
[365514225,1749732633088,-460.0,0.00021095,4]
[365514226,1749732633098,-360.0,0.00021095,4]
[365514227,1749732633108,-460.0,0.00021095,4]
[365514228,1749732633118,-460.0,0.00021095,4]
[365514229,1749732633127,-460.0,0.00021095,2]
[365514230,1749732633136,-469.31374328,0.00021095,4]
[365514231,1749732633146,-460.0,0.00021095,4]
[365514232,1749732633155,-460.0,0.00021095,4]
[365514233,1749732633165,-257.55728256,0.00021095,4]
[365514234,1749732633175,-460.0,0.00021095,4]
[365514235,1749732633185,-240.68059319,0.00021095,4]
[365514236,1749732633195,-978.82,0.00021095,4]
[365514237,1749732633205,-360.0,0.00021095,4]
[365514238,1749732633214,-460.0,0.00021095,4]
[365514239,1749732633224,-310.0,0.00021095,4]
[365514240,1749732633233,-272.5802503,0.00021095,4]
[365514241,1749732633243,-460.0,0.00021095,4]
[365514242,1749732633252,-460.0,0.00021095,4]
[365514243,1749732633263,-576.19,0.00021095,4]
[365514244,1749732633272,-460.0,0.00021095,4]
[365514245,1749732633282,-460.0,0.00021095,4]
[365514246,1749732633291,-460.0,0.00021095,4]
[365514247,1749732633300,-460.0,0.00021095,4]
[365514248,1749732633310,-151.0,0.00021095,4]
[365514249,1749732633319,-1452.1,0.00021095,4]
[365514250,1749732633329,-460.0,0.00021095,4]
[365514251,1749732633339,-410.09475286,0.00021095,4]
[365514252,1749732633348,-460.0,0.00021095,4]
[365514253,1749732633358,-460.0,0.00021095,4]
[365514254,1749732633368,-228.48360158,0.00021095,4]
[365514255,1749732633377,-460.0,0.00021095,4]
[365514256,1749732633386,-460.0,0.00021095,4]
[365514257,1749732633396,-460.0,0.00021095,4]
[365514258,1749732633406,-400.0,0.00021095,4]
[365514259,1749732633416,-460.0,0.00021095,4]
[365514260,1749732633426,-420.0,0.00021095,4]
[365514261,1749732633436,-401.35085523,0.00021095,4]
[365514262,1749732633452,-350.0,0.00021095,2]
[365514263,1749732633462,-460.0,0.00021095,4]
[365514264,1749732633471,-460.0,0.00021095,4]
[365514265,1749732633481,-460.0,0.00021095,4]
[365514266,1749732633490,-460.0,0.00021095,4]
[365514267,1749732633500,-486.45,0.00021095,4]
[365514268,1749732633510,-518.11,0.00021095,4]
[365514269,1749732633519,-460.0,0.00021095,4]
[365514270,1749732633529,-460.0,0.00021095,4]
[365514271,1749732633538,-460.0,0.00021095,4]
[365514272,1749732633548,-460.0,0.00021095,4]
[365514273,1749732633558,-460.0,0.00021095,4]
[365514274,1749732633568,-460.0,0.00021095,4]
[365514275,1749732633578,-460.0,0.00021095,4]
[365514276,1749732633587,-2329.72,0.00021095,4]
[365514277,1749732633596,-456.45576726,0.00021095,4]
[365514278,1749732633606,-985.35,0.00021095,4]
[365514279,1749732633617,-460.0,0.00021095,4]
[365514280,1749732633628,-579.6,0.00021095,4]
[365514281,1749732633637,-460.0,0.00021095,4]
[365514282,1749732633647,-460.0,0.00021095,4]
[365514283,1749732633657,-460.0,0.00021095,4]
[365514284,1749732633667,-1291.55,0.00021095,4]
[365514285,1749732633679,-460.0,0.00021095,4]
[365514286,1749732633689,-460.0,0.00021095,4]
[365514287,1749732633699,-460.0,0.00021095,4]
[365514288,1749732633709,-460.0,0.00021095,4]
[365514289,1749732633719,-460.0,0.00021095,4]
[365514290,1749732633728,-809.41,0.00021095,4]
[365514291,1749732633739,-1603.61,0.00021095,4]
[365514292,1749732633752,-460.0,0.00021095,4]
[365514293,1749732633762,-1264.79,0.00021095,4]
[365514294,1749732633772,-460.0,0.00021095,4]
[365514295,1749732633783,-222.282512,0.00021169,2]
[365514296,1749732633793,-317.48865,0.00021169,2]
[365514297,1749732633803,-317.48865,0.00021169,2]
[365514298,1749732633812,-978.04515246,0.00021176,4]
[365514299,1749732633825,-207.4,0.00021231,2]
[365514300,1749732633835,-5000.0,0.00021231,2]
[365514301,1749732633847,-3736.7704353,0.00021269,2]
[365514302,1749732633857,-420.0,0.00021293,2]
[365514303,1749732633868,-420.0,0.00021293,2]
[365514304,1749732633878,-398.0,0.00021293,2]
[365514305,1749732633888,-504.2284594,0.00021294,2]
[365514306,1749732633899,-500.0,0.00021294,2]
[365514307,1749732633908,-500.0,0.00021294,2]
[365514308,1749732633919,-501.55391125,0.00021294,2]
[365514309,1749732633930,-617.57877335,0.00021294,2]
[365514310,1749732633941,-978.04515246,0.00021314,5]
[365514311,1749732633951,-500.0,0.0002135,2]
[365514312,1749732633961,-317.48865,0.00021369,2]
[365514313,1749732633972,-317.48865,0.00021369,2]
[365514314,1749732633982,-337.08012644,0.00021369,4]
[365514315,1749732633991,-296.9343949,0.00021369,4]
[365514316,1749732634001,-460.0,0.00021369,4]
[365514317,1749732634011,-460.0,0.00021369,4]
[365514318,1749732634022,-460.0,0.00021369,2]
[365514319,1749732634039,-460.0,0.00021369,4]
[365514320,1749732634048,-460.0,0.00021369,4]
[365514321,1749732634058,-460.0,0.00021369,4]
[365514322,1749732634068,-978.82,0.00021369,4]
[365514323,1749732634078,-460.0,0.00021369,4]
[365514324,1749732634088,-460.0,0.00021369,4]
[365514325,1749732634098,-460.0,0.00021369,4]
[365514327,1749732634109,-576.19,0.00021369,4]
[365514328,1749732634119,-460.0,0.00021369,4]
[365514330,1749732634128,-460.0,0.00021369,4]
[365514332,1749732634139,-1452.1,0.00021369,4]
[365514334,1749732634149,-460.0,0.00021369,4]
[365514336,1749732634159,-460.0,0.00021369,4]
[365514338,1749732634169,-460.0,0.00021369,4]
[365514340,1749732634181,-460.0,0.00021369,4]
[365514341,1749732634191,-460.0,0.00021369,4]
[365514342,1749732634202,-460.0,0.00021369,4]
[365514343,1749732634212,-350.0,0.00021369,2]
[365514344,1749732634223,-460.0,0.00021369,4]
[365514345,1749732634233,-460.0,0.00021369,4]
[365514346,1749732634244,-486.45,0.00021369,4]
[365514347,1749732634253,-518.11,0.00021369,4]
[365514348,1749732634264,-460.0,0.00021369,4]
[365514349,1749732634274,-460.0,0.00021369,4]
[365514350,1749732634283,-460.0,0.00021369,4]
[365514351,1749732634294,-2329.72,0.00021369,4]
[365514352,1749732634303,-985.35,0.00021369,4]
[365514353,1749732634313,-460.0,0.00021369,4]
[365514354,1749732634324,-579.6,0.00021369,4]
[365514355,1749732634334,-460.0,0.00021369,4]
[365514356,1749732634344,-460.0,0.00021369,4]
[365514357,1749732634354,-1291.55,0.00021369,4]
[365514358,1749732634363,-165.56079701,0.00021369,4]
[365514359,1749732634373,-460.0,0.00021369,4]
[365514360,1749732634383,-809.41,0.00021369,4]
[365514361,1749732634393,-1603.61,0.00021369,4]
[365514362,1749732634402,-460.0,0.00021369,4]
[365514363,1749732634411,-1264.79,0.00021369,4]
[365514364,1749732634421,-460.0,0.00021369,4]
[365514365,1749732634430,-1680.0,0.00021395,2]
[365514366,1749732634440,-500.0,0.00021414,2]
[365514367,1749732634450,-500.0,0.00021414,2]
[365514368,1749732634460,-443.36030854,0.00021425,2]
[365514369,1749732634469,-502.03367678,0.00021425,2]
[365514370,1749732634479,-500.0,0.0002143,2]
[365514371,1749732634601,-502.6359938,0.0002143,2]
[365514372,1749732634611,-978.04515246,0.00021452,5]
[365514373,1749732634621,-160.0,0.00021492,2]
[365514374,1749732634630,-500.0,0.000215,2]
[365514375,1749732634640,-189.06396909,0.000215,2]
[365514376,1749732634649,-500.0,0.000215,2]
[365514377,1749732634659,-504.918264,0.000215,2]
[365514378,1749732634669,-500.0,0.000215,2]
[365514379,1749732634678,-500.0,0.000215,2]
[365514380,1749732634687,-500.0,0.00021506,2]
[365514381,1749732634696,-500.0,0.00021515,2]
[365514382,1749732634706,-503.23439298,0.00021515,2]
[365514383,1749732634716,-5025.7799804,0.00021518,2]
[365514384,1749732634726,-500.0,0.00021544,2]
[365514385,1749732634735,-500.0,0.00021544,2]
[365514386,1749732634746,-500.0,0.00021544,2]
[365514387,1749732634755,-216.11771501,0.00021544,2]
[365514388,1749732634766,-179.39980607,0.00021544,2]
[365514389,1749732634776,-503.38780588,0.00021544,2]
[365514390,1749732634786,-500.0,0.00021544,2]
[365514391,1749732634795,-317.48865,0.00021569,2]
[365514392,1749732634805,-317.48865,0.00021569,2]
[365514393,1749732634813,-978.04515246,0.0002159,5]
[365514394,1749732634824,-500.0,0.00021642,2]
[365514395,1749732634833,-317.48865,0.00021643,2]
[365514396,1749732634842,-317.48865,0.00021643,2]
[365514397,1749732634859,-460.0,0.00021643,4]
[365514398,1749732634868,-460.0,0.00021643,4]
[365514399,1749732634878,-460.0,0.00021643,2]
[365514400,1749732634887,-460.0,0.00021643,4]
[365514401,1749732634896,-460.0,0.00021643,4]
[365514402,1749732634905,-460.0,0.00021643,4]
[365514403,1749732634914,-978.82,0.00021643,4]
[365514404,1749732634924,-576.19,0.00021643,4]
[365514405,1749732634935,-1452.1,0.00021643,4]
[365514406,1749732634944,-460.0,0.00021643,4]
[365514407,1749732634954,-460.0,0.00021643,4]
[365514408,1749732634963,-460.0,0.00021643,4]
[365514409,1749732634973,-186.3,0.00021643,4]
[365514410,1749732634982,-350.0,0.00021643,2]
[365514411,1749732634991,-460.0,0.00021643,4]
[365514412,1749732635001,-486.45,0.00021643,4]
[365514413,1749732635010,-518.11,0.00021643,4]
[365514414,1749732635019,-360.0,0.00021643,4]
[365514415,1749732635028,-460.0,0.00021643,4]
[365514416,1749732635037,-2329.72,0.00021643,4]
[365514417,1749732635046,-985.35,0.00021643,4]
[365514418,1749732635055,-460.0,0.00021643,4]
[365514419,1749732635064,-579.6,0.00021643,4]
[365514420,1749732635075,-460.0,0.00021643,4]
[365514421,1749732635085,-460.0,0.00021643,4]
[365514422,1749732635095,-1291.55,0.00021643,4]
[365514423,1749732635104,-445.92,0.00021643,4]
[365514424,1749732635114,-809.41,0.00021643,4]
[365514425,1749732635124,-1603.61,0.00021643,4]
[365514426,1749732635133,-460.0,0.00021643,4]
[365514427,1749732635143,-1264.79,0.00021643,4]
[365514428,1749732635152,-460.0,0.00021643,4]
[365514429,1749732635162,-1651.46,0.00021649,2]
[365514430,1749732635171,-3736.77043528,0.00021677,2]
[365514431,1749732635183,-1048.22,0.000217,2]
[365514432,1749732635192,-978.04515246,0.00021728,5]
[365514433,1749732635201,-5000.0,0.00021779,2]
[365514434,1749732635211,-1000.0,0.00021842,2]
[365514435,1749732635221,-176.29134077,0.00021842,2]
[365514436,1749732635231,-190.3,0.00021842,5]
[365514437,1749732635241,-978.04515246,0.00021866,6]
[365514438,1749732635251,-317.48865,0.00021917,2]
[365514439,1749732635261,-317.48865,0.00021917,2]
[365514440,1749732635270,-460.0,0.00021917,4]
[365514441,1749732635280,-460.0,0.00021917,2]
[365514442,1749732635289,-460.0,0.00021917,4]
[365514443,1749732635299,-460.0,0.00021917,4]
[365514444,1749732635308,-460.0,0.00021917,4]
[365514445,1749732635318,-978.82,0.00021917,4]
[365514446,1749732635327,-576.19,0.00021917,4]
[365514447,1749732635335,-1452.1,0.00021917,4]
[365514448,1749732635344,-460.0,0.00021917,4]
[365514449,1749732635353,-460.0,0.00021917,4]
[365514450,1749732635363,-460.0,0.00021917,4]
[365514451,1749732635373,-350.0,0.00021917,2]
[365514452,1749732635382,-460.0,0.00021917,4]
[365514453,1749732635391,-486.45,0.00021917,4]
[365514454,1749732635401,-518.11,0.00021917,4]
[365514455,1749732635410,-460.0,0.00021917,4]
[365514456,1749732635421,-2329.72,0.00021917,4]
[365514457,1749732635432,-985.35,0.00021917,4]
[365514458,1749732635441,-460.0,0.00021917,4]
[365514459,1749732635451,-579.6,0.00021917,4]
[365514460,1749732635460,-460.0,0.00021917,4]
[365514461,1749732635470,-500.0,0.00021917,2]
[365514462,1749732635479,-460.0,0.00021917,4]
[365514463,1749732635488,-1291.55,0.00021917,4]
[365514464,1749732635498,-809.41,0.00021917,4]
[365514465,1749732635508,-1603.61,0.00021917,4]
[365514466,1749732635517,-239.86,0.00021917,4]
[365514467,1749732635527,-1264.79,0.00021917,4]
[365514468,1749732635535,-460.0,0.00021917,4]
[365514469,1749732635545,-1000.0,0.00021962,2]
[365514470,1749732635554,-1000.0,0.00021962,2]
[365514471,1749732635564,-317.48865,0.0002199,7]
[365514472,1749732635573,-317.48865,0.0002199,7]
[365514473,1749732635582,-213.0,0.00022,2]
[365514474,1749732635592,-978.04515246,0.00022003,6]
[365514475,1749732635601,-190.3,0.0002202,5]
[365514476,1749732635610,-503.4130077,0.00022048,2]
[365514477,1749732635619,-1000.0,0.00022048,2]